[Event "Early-Titled-Tuesday-Blitz-May-14-2024"]
[Site "Chess.com"]
[Date "2024.05.14"]
[Round "2"]
[White "Darko-Dimitrijevic"]
[Black "kanzaww"]
[Result "1/2-1/2"]
[WhiteElo "2218"]
[BlackElo "2487"]
[TimeControl "180+1"]
[EndTime "8:17:35 PDT"]
[Termination "Game drawn by repetition"]

1. c4 {[%clk 0:03:00.9]} 1... e6 {[%clk 0:02:58.8]} 2. b3 {[%clk 0:02:58.3]}
2... Nf6 {[%clk 0:02:58.2]} 3. Bb2 {[%clk 0:02:58.1]} 3... d5 {[%clk 0:02:59]}
4. g3 {[%clk 0:02:56.7]} 4... c5 {[%clk 0:02:58.5]} 5. Bg2 {[%clk 0:02:56.3]}
5... Nc6 {[%clk 0:02:59.2]} 6. Nc3 {[%clk 0:02:52.6]} 6... d4 {[%clk 0:02:59.5]}
7. Ne4 {[%clk 0:02:51.4]} 7... Nxe4 {[%clk 0:02:57.5]} 8. Bxe4 {[%clk
0:02:50.5]} 8... Qc7 {[%clk 0:02:53.4]} 9. Rb1 {[%clk 0:02:43]} 9... Be7 {[%clk
0:02:50]} 10. Bg2 {[%clk 0:02:40.7]} 10... O-O {[%clk 0:02:49.3]} 11. Nf3 {[%clk
0:02:36.7]} 11... e5 {[%clk 0:02:47.4]} 12. d3 {[%clk 0:02:35.9]} 12... f5
{[%clk 0:02:41.3]} 13. O-O {[%clk 0:02:31.2]} 13... Be6 {[%clk 0:02:31.5]} 14.
a3 {[%clk 0:02:29.1]} 14... Bf6 {[%clk 0:02:25.2]} 15. Nd2 {[%clk 0:02:19.5]}
15... Rae8 {[%clk 0:02:24.4]} 16. Qc2 {[%clk 0:02:16.6]} 16... h5 {[%clk
0:02:14.4]} 17. Ba1 {[%clk 0:02:13.3]} 17... h4 {[%clk 0:02:13.5]} 18. b4 {[%clk
0:02:11.6]} 18... b6 {[%clk 0:02:11.4]} 19. Qa4 {[%clk 0:02:05.4]} 19... Nd8
{[%clk 0:01:56.3]} 20. Rfe1 {[%clk 0:01:51.7]} 20... hxg3 {[%clk 0:01:51.9]} 21.
hxg3 {[%clk 0:01:49.6]} 21... Bd7 {[%clk 0:01:52]} 22. Qc2 {[%clk 0:01:46.9]}
22... Bc6 {[%clk 0:01:52]} 23. e4 {[%clk 0:01:42.4]} 23... dxe3 {[%clk
0:01:48.4]} 24. fxe3 {[%clk 0:01:41.2]} 24... Bxg2 {[%clk 0:01:47.4]} 25. Kxg2
{[%clk 0:01:39.7]} 25... e4 {[%clk 0:01:44.4]} 26. dxe4 {[%clk 0:01:34.8]} 26...
fxe4 {[%clk 0:01:40.9]} 27. Rh1 {[%clk 0:01:23.6]} 27... Bxa1 {[%clk 0:01:32.2]}
28. Rxa1 {[%clk 0:01:22.7]} 28... Nf7 {[%clk 0:01:31.4]} 29. Raf1 {[%clk
0:01:14.9]} 29... Ng5 {[%clk 0:01:29.7]} 30. Rxf8+ {[%clk 0:01:13.7]} 30... Rxf8
{[%clk 0:01:29.7]} 31. Rh5 {[%clk 0:01:13.3]} 31... Nf3 {[%clk 0:01:09.6]} 32.
Qxe4 {[%clk 0:01:05.1]} 32... Ne1+ {[%clk 0:00:45.5]} 33. Kh3 {[%clk 0:00:34.9]}
33... Qd7+ {[%clk 0:00:42.5]} 34. g4 {[%clk 0:00:34.6]} 34... Qxd2 {[%clk
0:00:26.9]} 35. Qe6+ {[%clk 0:00:34]} 35... Rf7 {[%clk 0:00:26.1]} 36. Qe8+
{[%clk 0:00:33.9]} 36... Rf8 {[%clk 0:00:25.9]} 37. Qe6+ {[%clk 0:00:33.4]}
37... Rf7 {[%clk 0:00:26.2]} 38. Qe8+ {[%clk 0:00:33.4]} 38... Rf8 {[%clk
0:00:26.3]} 39. Qe6+ {[%clk 0:00:33]} 1/2-1/2

[Event "Early-Titled-Tuesday-Blitz-May-14-2024"]
[Site "Chess.com"]
[Date "2024.05.14"]
[Round "2"]
[White "MrLion3000"]
[Black "Schattman"]
[Result "1/2-1/2"]
[WhiteElo "2768"]
[BlackElo "2554"]
[TimeControl "180+1"]
[EndTime "8:17:37 PDT"]
[Termination "Game drawn by repetition"]

1. d4 {[%clk 0:03:00.9]} 1... Nf6 {[%clk 0:02:52.8]} 2. c4 {[%clk 0:03:01.2]}
2... g6 {[%clk 0:02:52.3]} 3. Nc3 {[%clk 0:03:01.1]} 3... d5 {[%clk 0:02:52.4]}
4. cxd5 {[%clk 0:03:00.9]} 4... Nxd5 {[%clk 0:02:52]} 5. e4 {[%clk 0:03:01.5]}
5... Nxc3 {[%clk 0:02:51.9]} 6. bxc3 {[%clk 0:03:02.4]} 6... Bg7 {[%clk
0:02:51.1]} 7. Nf3 {[%clk 0:03:03]} 7... c5 {[%clk 0:02:51.1]} 8. Bb5+ {[%clk
0:03:03.1]} 8... Nc6 {[%clk 0:02:50.7]} 9. O-O {[%clk 0:03:00.3]} 9... O-O
{[%clk 0:02:47.8]} 10. Bxc6 {[%clk 0:02:36.3]} 10... bxc6 {[%clk 0:02:48.7]} 11.
Qc2 {[%clk 0:02:36.9]} 11... Qa5 {[%clk 0:02:46.5]} 12. a4 {[%clk 0:02:29.8]}
12... cxd4 {[%clk 0:02:35.6]} 13. cxd4 {[%clk 0:02:26.8]} 13... c5 {[%clk
0:02:30]} 14. Bd2 {[%clk 0:02:11.9]} 14... Qc7 {[%clk 0:02:11.8]} 15. Rac1
{[%clk 0:02:07.4]} 15... Ba6 {[%clk 0:02:06.4]} 16. Rfe1 {[%clk 0:01:52.5]}
16... c4 {[%clk 0:01:58]} 17. Bc3 {[%clk 0:01:52.4]} 17... e6 {[%clk 0:01:51.2]}
18. d5 {[%clk 0:01:48.5]} 18... Bxc3 {[%clk 0:01:45.4]} 19. Qxc3 {[%clk
0:01:49.4]} 19... exd5 {[%clk 0:01:45.6]} 20. exd5 {[%clk 0:01:50]} 20... Qf4
{[%clk 0:01:35.2]} 21. Rcd1 {[%clk 0:01:32.9]} 21... Rfd8 {[%clk 0:01:27.1]} 22.
Rd4 {[%clk 0:01:28.4]} 22... Qf6 {[%clk 0:01:21.7]} 23. Red1 {[%clk 0:01:03.7]}
23... Rab8 {[%clk 0:01:12.6]} 24. Rxc4 {[%clk 0:00:45.3]} 24... Qxc3 {[%clk
0:01:01.9]} 25. Rxc3 {[%clk 0:00:46.2]} 25... Rb4 {[%clk 0:00:58.2]} 26. Re3
{[%clk 0:00:31.4]} 26... Rxa4 {[%clk 0:00:53.9]} 27. h4 {[%clk 0:00:31.4]} 27...
Bb7 {[%clk 0:00:46.2]} 28. d6 {[%clk 0:00:13.8]} 28... Bxf3 {[%clk 0:00:45.1]}
29. Rxf3 {[%clk 0:00:14.7]} 29... Rd7 {[%clk 0:00:39.7]} 30. g3 {[%clk
0:00:13.6]} 30... Ra6 {[%clk 0:00:39.2]} 31. Rfd3 {[%clk 0:00:13.8]} 31... f5
{[%clk 0:00:35.8]} 32. Kg2 {[%clk 0:00:13.5]} 32... Kf7 {[%clk 0:00:36.2]} 33.
Kf3 {[%clk 0:00:13.6]} 33... Ke6 {[%clk 0:00:36.6]} 34. Re1+ {[%clk 0:00:14]}
34... Kf7 {[%clk 0:00:36.6]} 35. Red1 {[%clk 0:00:14.4]} 35... Ke6 {[%clk
0:00:36.9]} 36. Re1+ {[%clk 0:00:14.7]} 36... Kf7 {[%clk 0:00:36.9]} 37. Red1
{[%clk 0:00:10.7]} 1/2-1/2

[Event "Early-Titled-Tuesday-Blitz-May-14-2024"]
[Site "Chess.com"]
[Date "2024.05.14"]
[Round "2"]
[White "Likvidator228"]
[Black "Nikita_Klepikov"]
[Result "1-0"]
[WhiteElo "2547"]
[BlackElo "2324"]
[TimeControl "180+1"]
[EndTime "8:17:38 PDT"]
[Termination "Likvidator228 won on time"]

1. d4 {[%clk 0:03:00.9]} 1... Nf6 {[%clk 0:02:59.1]} 2. Nf3 {[%clk 0:03:00]}
2... g6 {[%clk 0:02:54.6]} 3. Bf4 {[%clk 0:02:58.6]} 3... Bg7 {[%clk 0:02:53.5]}
4. e3 {[%clk 0:02:58.7]} 4... c5 {[%clk 0:02:53.4]} 5. c3 {[%clk 0:02:58.4]}
5... b6 {[%clk 0:02:49.6]} 6. Nbd2 {[%clk 0:02:57.4]} 6... Bb7 {[%clk
0:02:49.6]} 7. h3 {[%clk 0:02:57.9]} 7... O-O {[%clk 0:02:49.6]} 8. a4 {[%clk
0:02:57.7]} 8... d6 {[%clk 0:02:44.4]} 9. Bc4 {[%clk 0:02:54.5]} 9... Nc6 {[%clk
0:01:42.4]} 10. O-O {[%clk 0:02:52.2]} 10... Re8 {[%clk 0:01:28.2]} 11. Bg3
{[%clk 0:02:36.4]} 11... cxd4 {[%clk 0:01:17.2]} 12. exd4 {[%clk 0:02:14.8]}
12... e5 {[%clk 0:01:10.3]} 13. dxe5 {[%clk 0:02:14.3]} 13... Nxe5 {[%clk
0:01:07.6]} 14. Be2 {[%clk 0:02:12.1]} 14... Nh5 {[%clk 0:00:59.8]} 15. Bh2
{[%clk 0:02:09.6]} 15... Nf6 {[%clk 0:00:27.9]} 16. Nd4 {[%clk 0:02:05.7]} 16...
Qe7 {[%clk 0:00:10.1]} 17. N2f3 {[%clk 0:02:02.6]} 17... h5 {[%clk 0:00:08.5]}
18. Re1 {[%clk 0:01:58.3]} 18... Ne4 {[%clk 0:00:08.1]} 19. a5 {[%clk
0:01:38.2]} 19... Rad8 {[%clk 0:00:08.2]} 20. axb6 {[%clk 0:01:37.6]} 20... axb6
{[%clk 0:00:09.1]} 21. Qb3 {[%clk 0:01:26.8]} 21... Nc5 {[%clk 0:00:04.1]} 22.
Qxb6 {[%clk 0:01:20.3]} 22... Nxf3+ {[%clk 0:00:04.3]} 23. Nxf3 {[%clk
0:01:05.6]} 23... Bxf3 {[%clk 0:00:04.7]} 24. gxf3 {[%clk 0:01:04.3]} 24... Qh4
{[%clk 0:00:04.7]} 25. Bf1 {[%clk 0:01:00.4]} 25... Rc8 {[%clk 0:00:04.6]} 26.
Qxd6 {[%clk 0:00:55.5]} 26... Ne6 {[%clk 0:00:03.9]} 27. Ra7 {[%clk 0:00:42.8]}
27... Ng5 {[%clk 0:00:04]} 28. Rxe8+ {[%clk 0:00:38.8]} 28... Rxe8 {[%clk
0:00:03.6]} 29. Qg3 {[%clk 0:00:35.6]} 1-0

[Event "Early-Titled-Tuesday-Blitz-May-14-2024"]
[Site "Chess.com"]
[Date "2024.05.14"]
[Round "2"]
[White "Agibileg"]
[Black "FoggyMorning"]
[Result "1-0"]
[WhiteElo "2905"]
[BlackElo "2609"]
[TimeControl "180+1"]
[EndTime "8:17:39 PDT"]
[Termination "Agibileg won by resignation"]

1. d4 {[%clk 0:02:59.1]} 1... Nf6 {[%clk 0:02:59.9]} 2. c4 {[%clk 0:02:59.1]}
2... e6 {[%clk 0:03:00.4]} 3. Nc3 {[%clk 0:02:59.4]} 3... Bb4 {[%clk 0:03:00.6]}
4. a3 {[%clk 0:02:59]} 4... Bxc3+ {[%clk 0:03:00.5]} 5. bxc3 {[%clk 0:02:59.9]}
5... Nc6 {[%clk 0:03:01.1]} 6. f3 {[%clk 0:03:00]} 6... b6 {[%clk 0:02:55.8]} 7.
e4 {[%clk 0:02:59.8]} 7... d6 {[%clk 0:02:39.2]} 8. Bd3 {[%clk 0:02:59.2]} 8...
Na5 {[%clk 0:02:31]} 9. f4 {[%clk 0:02:54.5]} 9... Bb7 {[%clk 0:02:20.8]} 10.
Qe2 {[%clk 0:02:54.5]} 10... Qd7 {[%clk 0:01:44.3]} 11. Nf3 {[%clk 0:02:54.4]}
11... O-O-O {[%clk 0:01:36.2]} 12. O-O {[%clk 0:02:53.9]} 12... Kb8 {[%clk
0:01:35.9]} 13. Nd2 {[%clk 0:02:50.9]} 13... e5 {[%clk 0:01:29.1]} 14. fxe5
{[%clk 0:02:36.1]} 14... dxe5 {[%clk 0:01:30]} 15. d5 {[%clk 0:02:30.7]} 15...
Qd6 {[%clk 0:01:22.5]} 16. a4 {[%clk 0:02:29.7]} 16... c5 {[%clk 0:00:51.8]} 17.
Rb1 {[%clk 0:02:17.5]} 17... Qd7 {[%clk 0:00:44]} 18. Nb3 {[%clk 0:02:10.2]}
18... Qxa4 {[%clk 0:00:32.5]} 19. Nxa5 {[%clk 0:02:07.7]} 19... Qxa5 {[%clk
0:00:33.4]} 20. Bg5 {[%clk 0:02:07.2]} 20... Rd6 {[%clk 0:00:31.4]} 21. Qc2
{[%clk 0:02:06.8]} 21... b5 {[%clk 0:00:19.1]} 22. Rxb5 {[%clk 0:02:06.2]} 22...
Qc7 {[%clk 0:00:19.5]} 23. Be3 {[%clk 0:02:02.4]} 23... Nd7 {[%clk 0:00:03.7]}
24. Rxf7 {[%clk 0:02:02.1]} 24... Qd8 {[%clk 0:00:04.2]} 25. Bxc5 {[%clk
0:01:57.2]} 25... Nxc5 {[%clk 0:00:04.8]} 26. Rxc5 {[%clk 0:01:57]} 26... Qb6
{[%clk 0:00:05.5]} 27. Qf2 {[%clk 0:01:57.2]} 27... Rf6 {[%clk 0:00:04.6]} 28.
Rxf6 {[%clk 0:01:55.8]} 28... gxf6 {[%clk 0:00:05.5]} 29. Rb5 {[%clk 0:01:55.6]}
29... Qxf2+ {[%clk 0:00:05.8]} 30. Kxf2 {[%clk 0:01:56.2]} 30... Ka8 {[%clk
0:00:05.3]} 31. c5 {[%clk 0:01:55.9]} 31... Ba6 {[%clk 0:00:05.5]} 32. c4 {[%clk
0:01:53.3]} 32... Bxb5 {[%clk 0:00:04]} 33. cxb5 {[%clk 0:01:54.1]} 33... Kb7
{[%clk 0:00:02.3]} 34. d6 {[%clk 0:01:51]} 34... a6 {[%clk 0:00:02.6]} 35. Bc4
{[%clk 0:01:36.7]} 35... axb5 {[%clk 0:00:02.7]} 36. Bxb5 {[%clk 0:01:37.4]}
36... Ra8 {[%clk 0:00:02]} 37. Kf3 {[%clk 0:01:34.3]} 37... Ra5 {[%clk 0:00:02]}
38. c6+ {[%clk 0:01:34.2]} 38... Kb6 {[%clk 0:00:02.6]} 39. c7 {[%clk
0:01:34.2]} 39... Ra8 {[%clk 0:00:01.9]} 40. Bd7 {[%clk 0:01:33.9]} 40... Kb7
{[%clk 0:00:02.4]} 41. Kg4 {[%clk 0:01:31.2]} 41... Rg8+ {[%clk 0:00:01.2]} 42.
Kf5 {[%clk 0:01:31.3]} 42... Rf8 {[%clk 0:00:00.9]} 43. c8=Q+ {[%clk 0:01:30.9]}
43... Rxc8 {[%clk 0:00:00.2]} 44. Bxc8+ {[%clk 0:01:31.6]} 44... Kxc8 {[%clk
0:00:01.1]} 45. Kxf6 {[%clk 0:01:31.5]} 45... h5 {[%clk 0:00:02]} 46. Kxe5
{[%clk 0:01:31]} 46... Kd7 {[%clk 0:00:02.9]} 47. Kd5 {[%clk 0:01:31]} 47... h4
{[%clk 0:00:03.8]} 48. e5 {[%clk 0:01:30.7]} 48... h3 {[%clk 0:00:04.7]} 1-0

[Event "Early-Titled-Tuesday-Blitz-May-14-2024"]
[Site "Chess.com"]
[Date "2024.05.14"]
[Round "2"]
[White "BelyakovBogdan"]
[Black "Szparu"]
[Result "0-1"]
[WhiteElo "2592"]
[BlackElo "2860"]
[TimeControl "180+1"]
[EndTime "8:17:41 PDT"]
[Termination "Szparu won by resignation"]

1. e4 {[%clk 0:02:55.6]} 1... c5 {[%clk 0:03:00.6]} 2. Nf3 {[%clk 0:02:54.9]}
2... a6 {[%clk 0:03:01.1]} 3. g3 {[%clk 0:02:54.9]} 3... b5 {[%clk 0:03:00.9]}
4. Bg2 {[%clk 0:02:54.8]} 4... Bb7 {[%clk 0:03:01.5]} 5. d4 {[%clk 0:02:53.1]}
5... cxd4 {[%clk 0:02:59.3]} 6. Nxd4 {[%clk 0:02:52.4]} 6... e6 {[%clk
0:02:59.7]} 7. O-O {[%clk 0:02:49.2]} 7... Nc6 {[%clk 0:02:59.8]} 8. Nc3 {[%clk
0:02:36.4]} 8... Rc8 {[%clk 0:02:58.9]} 9. Re1 {[%clk 0:02:34.1]} 9... Nge7
{[%clk 0:02:51.9]} 10. Bg5 {[%clk 0:02:21]} 10... Qb6 {[%clk 0:02:41.8]} 11. Be3
{[%clk 0:02:10.8]} 11... Nxd4 {[%clk 0:02:33.3]} 12. Bxd4 {[%clk 0:02:10.1]}
12... Qc7 {[%clk 0:02:33.4]} 13. Rc1 {[%clk 0:02:01.4]} 13... Nc6 {[%clk
0:02:26.5]} 14. Nd5 {[%clk 0:01:57.7]} 14... Qb8 {[%clk 0:02:16.9]} 15. Be3
{[%clk 0:01:41.7]} 15... Ne5 {[%clk 0:02:12.1]} 16. Bf4 {[%clk 0:01:12.2]} 16...
Bd6 {[%clk 0:01:56]} 17. Nb6 {[%clk 0:01:10]} 17... Rd8 {[%clk 0:01:56]} 18. Qd4
{[%clk 0:00:57.8]} 18... Bc7 {[%clk 0:01:38.6]} 19. c4 {[%clk 0:00:41.7]} 19...
b4 {[%clk 0:01:22.1]} 20. c5 {[%clk 0:00:40.9]} 20... O-O {[%clk 0:01:17.7]} 21.
Rcd1 {[%clk 0:00:35.5]} 21... a5 {[%clk 0:01:13.5]} 22. h3 {[%clk 0:00:28.8]}
22... Bc6 {[%clk 0:01:13.5]} 23. Be3 {[%clk 0:00:28.7]} 23... Ng6 {[%clk
0:01:04.2]} 24. Nc4 {[%clk 0:00:28.2]} 24... f5 {[%clk 0:00:44.7]} 25. exf5
{[%clk 0:00:27.6]} 25... Bxg2 {[%clk 0:00:45.6]} 26. Kxg2 {[%clk 0:00:26.9]}
26... Rxf5 {[%clk 0:00:46]} 27. Nd6 {[%clk 0:00:19.8]} 27... Rd5 {[%clk
0:00:42.2]} 28. Qe4 {[%clk 0:00:16.2]} 28... Re5 {[%clk 0:00:40]} 29. Qd4 {[%clk
0:00:12.7]} 29... Qa8+ {[%clk 0:00:39.9]} 30. Kg1 {[%clk 0:00:10.8]} 30... Rd5
{[%clk 0:00:35.5]} 31. Qe4 {[%clk 0:00:10.9]} 31... Bxd6 {[%clk 0:00:33.5]} 32.
cxd6 {[%clk 0:00:05.9]} 32... Rxd1 {[%clk 0:00:32.5]} 0-1

[Event "Early-Titled-Tuesday-Blitz-May-14-2024"]
[Site "Chess.com"]
[Date "2024.05.14"]
[Round "2"]
[White "Alexchess1984"]
[Black "Resourchess"]
[Result "1/2-1/2"]
[WhiteElo "2688"]
[BlackElo "2422"]
[TimeControl "180+1"]
[EndTime "8:17:41 PDT"]
[Termination "Game drawn by repetition"]

1. e4 {[%clk 0:03:00.9]} 1... d6 {[%clk 0:02:59.3]} 2. d4 {[%clk 0:02:59.5]}
2... g6 {[%clk 0:02:59.4]} 3. Nc3 {[%clk 0:02:59.8]} 3... Bg7 {[%clk 0:02:59.4]}
4. h4 {[%clk 0:03:00.1]} 4... h5 {[%clk 0:02:57.9]} 5. Be2 {[%clk 0:02:59.3]}
5... a6 {[%clk 0:02:56.9]} 6. Be3 {[%clk 0:02:57.4]} 6... b5 {[%clk 0:02:54.5]}
7. Nh3 {[%clk 0:02:50.9]} 7... Bxh3 {[%clk 0:02:53.2]} 8. Rxh3 {[%clk
0:02:49.5]} 8... Nd7 {[%clk 0:02:51.5]} 9. f3 {[%clk 0:02:47.1]} 9... Rc8 {[%clk
0:02:45.3]} 10. d5 {[%clk 0:02:44.2]} 10... Ngf6 {[%clk 0:02:40.8]} 11. a3
{[%clk 0:02:42.5]} 11... c5 {[%clk 0:02:31.7]} 12. dxc6 {[%clk 0:02:42.3]} 12...
Rxc6 {[%clk 0:02:30.9]} 13. Qd2 {[%clk 0:02:43]} 13... Qc7 {[%clk 0:02:24]} 14.
Kf1 {[%clk 0:02:37.4]} 14... Ne5 {[%clk 0:02:19.3]} 15. Rd1 {[%clk 0:02:34.2]}
15... Nc4 {[%clk 0:02:11.4]} 16. Bxc4 {[%clk 0:02:33.8]} 16... Rxc4 {[%clk
0:02:12.3]} 17. Kg1 {[%clk 0:02:32.1]} 17... O-O {[%clk 0:02:10.8]} 18. Bh6
{[%clk 0:02:21.6]} 18... Kh7 {[%clk 0:02:06.2]} 19. Bxg7 {[%clk 0:02:21.3]}
19... Kxg7 {[%clk 0:02:06.6]} 20. Rg3 {[%clk 0:02:19.5]} 20... d5 {[%clk
0:01:59.2]} 21. Rg5 {[%clk 0:02:02.8]} 21... dxe4 {[%clk 0:01:55.7]} 22. fxe4
{[%clk 0:01:59.6]} 22... Nxe4 {[%clk 0:01:47.5]} 23. Nxe4 {[%clk 0:01:58.9]}
23... Rxe4 {[%clk 0:01:47.6]} 24. c3 {[%clk 0:01:56.4]} 24... Qb6+ {[%clk
0:01:34.4]} 25. Qf2 {[%clk 0:01:56.2]} 25... Qxf2+ {[%clk 0:01:32.9]} 26. Kxf2
{[%clk 0:01:57.1]} 26... Rxh4 {[%clk 0:01:32.8]} 27. Rd7 {[%clk 0:01:57.7]}
27... Rf4+ {[%clk 0:01:32.7]} 28. Ke3 {[%clk 0:01:49.6]} 28... Rf6 {[%clk
0:01:28.6]} 29. Rc5 {[%clk 0:01:43]} 29... Re6+ {[%clk 0:01:21.6]} 30. Kf2
{[%clk 0:01:42.8]} 30... Rh8 {[%clk 0:01:13.9]} 31. Rcc7 {[%clk 0:01:39.9]}
31... Kf6 {[%clk 0:01:13.5]} 32. b3 {[%clk 0:01:24.6]} 32... h4 {[%clk
0:01:13.1]} 33. Rd3 {[%clk 0:01:18.5]} 33... Rh5 {[%clk 0:01:08.4]} 34. Ra7
{[%clk 0:01:08.3]} 34... Rf5+ {[%clk 0:01:04.9]} 35. Kg1 {[%clk 0:01:08]} 35...
g5 {[%clk 0:00:56.1]} 36. Rd4 {[%clk 0:00:56.6]} 36... Re1+ {[%clk 0:00:44.8]}
37. Kh2 {[%clk 0:00:56.5]} 37... Rff1 {[%clk 0:00:21.4]} 38. Rxa6+ {[%clk
0:00:52]} 38... e6 {[%clk 0:00:21.8]} 39. Kh3 {[%clk 0:00:46.3]} 39... Kf5
{[%clk 0:00:19.3]} 40. g4+ {[%clk 0:00:46.2]} 40... hxg3 {[%clk 0:00:19]} 41.
Kxg3 {[%clk 0:00:45.9]} 41... Rg1+ {[%clk 0:00:18.5]} 42. Kf2 {[%clk 0:00:46.1]}
42... Rgf1+ {[%clk 0:00:18.1]} 43. Kg2 {[%clk 0:00:46.6]} 43... Rg1+ {[%clk
0:00:17.8]} 44. Kf2 {[%clk 0:00:47]} 44... Rgf1+ {[%clk 0:00:17.4]} 45. Kg2
{[%clk 0:00:47]} 45... Rg1+ {[%clk 0:00:16.7]} 46. Kf2 {[%clk 0:00:47.3]}
1/2-1/2

[Event "Early-Titled-Tuesday-Blitz-May-14-2024"]
[Site "Chess.com"]
[Date "2024.05.14"]
[Round "2"]
[White "Flawless_Fighter"]
[Black "Shivananda1964"]
[Result "1-0"]
[WhiteElo "2703"]
[BlackElo "2396"]
[TimeControl "180+1"]
[EndTime "8:17:42 PDT"]
[Termination "Flawless_Fighter won by resignation"]

1. h4 {[%clk 0:03:00.9]} 1... d5 {[%clk 0:02:55]} 2. h5 {[%clk 0:03:00]} 2... h6
{[%clk 0:02:55.3]} 3. d4 {[%clk 0:02:59.4]} 3... Bf5 {[%clk 0:02:55.1]} 4. Nf3
{[%clk 0:02:58.6]} 4... Nf6 {[%clk 0:02:55.2]} 5. Bf4 {[%clk 0:02:58.5]} 5... e6
{[%clk 0:02:54.4]} 6. e3 {[%clk 0:02:58.1]} 6... c5 {[%clk 0:02:53.9]} 7. Bd3
{[%clk 0:02:57.1]} 7... Bg4 {[%clk 0:02:45.1]} 8. c3 {[%clk 0:02:53.1]} 8... Nc6
{[%clk 0:02:42.3]} 9. Nbd2 {[%clk 0:02:34]} 9... Bd6 {[%clk 0:02:40]} 10. Bxd6
{[%clk 0:02:32.4]} 10... Qxd6 {[%clk 0:02:40.1]} 11. dxc5 {[%clk 0:02:15.9]}
11... Qxc5 {[%clk 0:02:38.1]} 12. Qb3 {[%clk 0:02:16]} 12... e5 {[%clk
0:02:13.9]} 13. Bb5 {[%clk 0:02:08.1]} 13... Qd6 {[%clk 0:01:19.3]} 14. c4
{[%clk 0:01:52.1]} 14... d4 {[%clk 0:01:04.3]} 15. exd4 {[%clk 0:01:49.9]} 15...
exd4 {[%clk 0:01:04.1]} 16. O-O {[%clk 0:01:34.7]} 16... O-O {[%clk 0:01:01]}
17. Rfe1 {[%clk 0:01:33.4]} 17... Bxh5 {[%clk 0:00:57.6]} 18. Rac1 {[%clk
0:01:30.9]} 18... Rad8 {[%clk 0:00:55.6]} 19. c5 {[%clk 0:01:30.5]} 19... Qf4
{[%clk 0:00:53.7]} 20. Bc4 {[%clk 0:01:28]} 20... Na5 {[%clk 0:00:35.9]} 21. Qb4
{[%clk 0:01:24.6]} 21... Nxc4 {[%clk 0:00:35.3]} 22. Rxc4 {[%clk 0:01:24.8]}
22... Ng4 {[%clk 0:00:12.3]} 23. Rxd4 {[%clk 0:01:19.5]} 23... Rxd4 {[%clk
0:00:09.6]} 24. Qxd4 {[%clk 0:01:20.4]} 24... Qc7 {[%clk 0:00:02.9]} 25. Qd6
{[%clk 0:01:18.2]} 25... Qxd6 {[%clk 0:00:03.3]} 26. cxd6 {[%clk 0:01:18.8]}
26... Rd8 {[%clk 0:00:04.1]} 27. Ne4 {[%clk 0:01:08.1]} 27... Nf6 {[%clk
0:00:03.8]} 28. Nxf6+ {[%clk 0:00:57.4]} 28... gxf6 {[%clk 0:00:03.8]} 29. Nd4
{[%clk 0:00:58.1]} 29... Rxd6 {[%clk 0:00:03.7]} 30. Re8+ {[%clk 0:00:58.6]}
30... Kh7 {[%clk 0:00:04]} 31. Nf5 {[%clk 0:00:59.3]} 31... Re6 {[%clk
0:00:03.9]} 32. Rb8 {[%clk 0:00:57.8]} 32... Bg6 {[%clk 0:00:04.1]} 33. Ne3
{[%clk 0:00:57.3]} 33... Rb6 {[%clk 0:00:04.9]} 34. b3 {[%clk 0:00:57.2]} 34...
a6 {[%clk 0:00:05.4]} 35. Nc4 {[%clk 0:00:52.8]} 35... Rb5 {[%clk 0:00:05]} 36.
Nd6 {[%clk 0:00:51.9]} 36... Rd5 {[%clk 0:00:05.2]} 37. Ne8 {[%clk 0:00:48.6]}
37... f5 {[%clk 0:00:04.1]} 38. Nf6+ {[%clk 0:00:48.6]} 1-0

[Event "Early-Titled-Tuesday-Blitz-May-14-2024"]
[Site "Chess.com"]
[Date "2024.05.14"]
[Round "2"]
[White "Yerlan-Ra"]
[Black "VirtualCoach"]
[Result "1-0"]
[WhiteElo "2482"]
[BlackElo "2180"]
[TimeControl "180+1"]
[EndTime "8:17:44 PDT"]
[Termination "Yerlan-Ra won by resignation"]

1. e4 {[%clk 0:03:00]} 1... c5 {[%clk 0:02:57.7]} 2. c3 {[%clk 0:02:56.3]} 2...
Nf6 {[%clk 0:02:56.2]} 3. e5 {[%clk 0:02:56.2]} 3... Nd5 {[%clk 0:02:56.8]} 4.
d4 {[%clk 0:02:56.9]} 4... cxd4 {[%clk 0:02:56.7]} 5. Nf3 {[%clk 0:02:57.4]}
5... Nc6 {[%clk 0:02:55.9]} 6. Bc4 {[%clk 0:02:56.7]} 6... Nb6 {[%clk
0:02:54.9]} 7. Bb3 {[%clk 0:02:50.4]} 7... e6 {[%clk 0:02:53]} 8. cxd4 {[%clk
0:02:47.9]} 8... d6 {[%clk 0:02:52.9]} 9. O-O {[%clk 0:02:44.2]} 9... Qc7 {[%clk
0:02:50.4]} 10. Nc3 {[%clk 0:02:40.8]} 10... a6 {[%clk 0:02:45.9]} 11. exd6
{[%clk 0:02:34.7]} 11... Bxd6 {[%clk 0:02:45.3]} 12. d5 {[%clk 0:02:34.4]} 12...
Nd8 {[%clk 0:02:41.1]} 13. Be3 {[%clk 0:02:26.1]} 13... O-O {[%clk 0:02:33.4]}
14. Rc1 {[%clk 0:02:26.5]} 14... Bf4 {[%clk 0:01:13.3]} 15. Ne4 {[%clk
0:02:10.7]} 15... Qb8 {[%clk 0:01:11.7]} 16. Bxb6 {[%clk 0:02:07.7]} 16... Bxc1
{[%clk 0:01:11.4]} 17. Qxc1 {[%clk 0:02:08.2]} 17... exd5 {[%clk 0:01:10.5]} 18.
Bxd5 {[%clk 0:02:09.1]} 18... Nc6 {[%clk 0:01:07.4]} 19. Qg5 {[%clk 0:01:59.9]}
19... h6 {[%clk 0:00:57.7]} 20. Qh5 {[%clk 0:01:48]} 20... Qf4 {[%clk
0:00:52.8]} 21. Bc5 {[%clk 0:01:32.2]} 21... Bg4 {[%clk 0:00:47.1]} 22. Qh4
{[%clk 0:01:17.1]} 22... Rfd8 {[%clk 0:00:45.8]} 23. Nc3 {[%clk 0:01:13.6]}
23... Qf5 {[%clk 0:00:27.1]} 24. h3 {[%clk 0:01:03.3]} 24... Bxf3 {[%clk
0:00:25.1]} 25. gxf3 {[%clk 0:00:44.5]} 25... Rxd5 {[%clk 0:00:24]} 26. Nxd5
{[%clk 0:00:45.4]} 26... Qxd5 {[%clk 0:00:24.7]} 27. Be3 {[%clk 0:00:46.1]}
27... Qxf3 {[%clk 0:00:23.8]} 28. Kh2 {[%clk 0:00:41.2]} 28... Re8 {[%clk
0:00:22.3]} 29. Rg1 {[%clk 0:00:40.2]} 29... Re4 {[%clk 0:00:16.8]} 30. Rxg7+
{[%clk 0:00:35.7]} 30... Kxg7 {[%clk 0:00:13.9]} 31. Bxh6+ {[%clk 0:00:35.2]}
31... Kg8 {[%clk 0:00:13.6]} 32. Qg5+ {[%clk 0:00:35.3]} 1-0